Cogmind - Beta 13 @@@ ROGUE MODE // 2024.04.02 @ 07:26:01 Player: Pixel Result: Destroyed by Y-45 Defender with Beam Rifle Performance ------------- Evolutions (1) 500 Regions Visited (3) 600 Robots Destroyed (27) 135 Value Destroyed (660) 660 Prototype IDs (0) 0 Alien Tech Used (0) 0 Bonus (17) 17 TOTAL SCORE: 1912 Bonus ------- High Alert Combat Kills 17 Cogmind --------- Core Integrity 0/400 Matter 108/300 Energy 98/100 System Corruption 0% Temperature Cool (9) Movement Core (50) Location -9/Materials Parts ------- > --- POWER (1) -------- (None) > --- PROPULSION (2) --- (None) > --- UTILITY (4) ------ Improved Signal Interpreter Targeting Computer > --- WEAPON (2) ------- (None) > --- INVENTORY (5) ---- Light Ion Engine Light Treads Medium Storage Unit Improved Terrain Scanner Peak State ------------ > --- POWER ------------ Improved Ion Engine > --- PROPULSION ------- Light Treads Advanced Treads > --- UTILITY ---------- Improved Sensor Array Improved Signal Interpreter Improved Terrain Scanner Targeting Computer > --- WEAPON ----------- Particle Gun Improved Grenade Launcher > --- INVENTORY -------- Light Ion Engine Light Treads Targeting Computer [Rating: 21] Favorites ----------- Power Light Ion Engine Engine Light Ion Engine Propulsion Aluminum Leg Treads Advanced Treads Leg Aluminum Leg Utility Improved Terrain Scanner Device Improved Terrain Scanner Storage High-capacity Storage Unit Processor Improved Signal Interpreter Protection Hardened Light Armor Plating Weapon EM Pulse Gun Energy Gun EM Pulse Gun Ballistic Gun Light Assault Rifle Ballistic Cannon Improved Light Cannon Launcher Improved Grenade Launcher Special Weapon Plasma Cutter Build | -11 -10 -10 -9 ------- Run | Yrd Mat Min Mat Slots Evolved 2 | . . . 2 Power . | . . . . Propulsion . | . . . . Utility 2 | . . . 2 Weapon . | . . . . Parts Attached 29 | 7 6 6 10 Power 3 | 1 . 1 1 Engine 3 | 1 . 1 1 Core . | . . . . Reactor . | . . . . Propulsion 6 | 2 2 2 . Treads 2 | . . 2 . Leg 4 | 2 2 . . Wheel . | . . . . Hover . | . . . . Flight . | . . . . Utility 9 | 1 2 1 5 Device 2 | 1 . 1 . Storage 3 | . 2 . 1 Processor 3 | . . . 3 Hackware . | . . . . Protection 1 | . . . 1 Artifact . | . . . . Weapon 11 | 3 2 2 4 Energy Gun 6 | 3 2 1 . Energy Cannon . | . . . . Ballistic Gun 2 | . . . 2 Ballistic Cannon 1 | . . . 1 Launcher 1 | . . 1 . Special Weapon 1 | . . . 1 Impact Weapon . | . . . . Slashing Weapon . | . . . . Piercing Weapon . | . . . . Special Melee Weapon . | . . . . Unidentified Prototypes . | . . . . Parts Lost 15 | . 2 1 12 Power 3 | . . 1 2 Propulsion 2 | . . . 2 Utility 3 | . . . 3 Weapon 7 | . 2 . 5 Highest Loss Streak 11 | . 1 1 11 To Critical Strikes . | . . . . Average Slot Usage (%) 94 | . 96 93 94 Engine 12 | . 14 13 10 Treads 11 | . . 15 20 Leg 14 | . 28 12 . Device 17 | . 14 24 11 Storage 3 | . 10 . . Processor 6 | . . . 22 Protection 2 | . . . 7 Energy Gun 17 | . 28 16 5 Ballistic Cannon 1 | . . . 4 Launcher 6 | . . 10 9 Naked Turns . | . . . . Heaviest Build 48 | 8 48 18 23 Greatest Support 42 | 20 26 42 42 Greatest Overweight (x) 2 | . 2 . 1 Average Overweight (x) . | . 1 . . Largest Inventory Capacity 20 | 5 20 5 20 Average Capacity 8 | 5 16 5 5 Most Carried 7 | 3 7 5 5 Average Carried 3 | . 2 4 3 Final Capacity 5 | 5 5 5 5 Final Carried 5 | 1 3 5 4 Class Distribution -------------------- 84% | Mutant 10% | Scavenger-Mutant 4% | Scavenger-Skirmisher Dominant Class ---------------- Mutant | -10/Materials Mutant | -10/Mines Mutant | -9/Materials Resources | -11 -10 -10 -9 ----------- Run | Yrd Mat Min Mat Matter Collected 534 | 260 150 45 79 Remotely . | . . . . Salvage Created 688 | 65 230 110 283 Parts 62 | 9 12 7 34 Haulers Intercepted . | . . . . Recyclers Shooed . | . . . . Parts Field Recycled . | . . . . Retrieved Matter . | . . . . Parts Self-Destructed . | . . . . Prevented . | . . . . Kills | -11 -10 -10 -9 ------- Run | Yrd Mat Min Mat Combat Hostiles Destroyed 20 | 1 5 2 12 Guns 10 | 1 5 2 2 Cannons 3 | . . . 3 AOE 7 | . . . 7 Classes Destroyed 9 | 2 2 . 5 Worker 1 | . . . 1 Builder 2 | . . . 2 Tunneler 1 | 1 . . . Recycler 1 | . 1 . . Operator 1 | . . . 1 Watcher 1 | . . . 1 Swarmer 8 | . 3 . 5 Grunt 9 | 1 2 2 4 Sentry 3 | . . . 3 Best Kill Streak 6 | 2 3 2 6 Combat Bots Only 4 | 1 3 2 4 Max Kills in Single Turn 2 | 2 2 1 2 Gunslinging 1 | . 1 . . Exploded 2 | . . . 2 Melee . | . . . . Uniques/NPCs Destroyed . | . . . . Combat | -11 -10 -10 -9 -------- Run | Yrd Mat Min Mat Hostile Shots Fired 196 | 2 42 14 138 Missed 57 | 2 16 3 36 Damage Taken 1760 | . 245 181 1334 Core 426 | . . 23 403 Absorbed by Shields . | . . . . Core Remaining (%) 95 | 100 . 90 . Volleys Fired 56 | 3 14 14 25 Largest 2 | 2 2 1 2 Hottest 101 | 80 80 65 101 Shots Fired 84 | 6 27 14 37 Gun 63 | 6 27 14 16 Cannon 8 | . . . 8 Launcher 12 | . . . 12 Special 1 | . . . 1 Kinetic 18 | . . . 18 Thermal 9 | . . 2 7 Explosive 12 | . . . 12 Electromagnetic 45 | 6 27 12 . Robot Hit Streak 10 | 3 6 10 9 Robot Miss Streak 4 | 2 4 1 1 Penetration Max . | . . . . Secondary Targets 1 | . 1 . . Max Gunslinging Chain 1 | . 1 . . Shots Hit Robots 57 | 3 14 13 27 Core Hits 39 | 3 7 6 23 Critical Kills . | . . . . Critical Parts Destroyed . | . . . . Critical Strikes 3 | . 2 . 1 Blast 1 | . . . 1 Corrupt 2 | . 2 . . Melee Attacks . | . . . . Impact . | . . . . Slashing . | . . . . Piercing . | . . . . Sneak Attacks . | . . . . Combat Hostiles . | . . . . Follow-up Attacks . | . . . . Damage Inflicted 1579 | 108 191 179 1101 Guns 560 | 54 191 179 136 Cannons 160 | . . . 160 Explosions 847 | 54 . . 793 Melee . | . . . . Ramming . | . . . . Kinetic 253 | . . . 253 Thermal 179 | 54 . 32 93 Explosive 755 | . . . 755 Electromagnetic 392 | 54 191 147 . Impact . | . . . . Slashing . | . . . . Piercing . | . . . . Highest Corruption . | . . . . Average Corruption . | . . . . Corruption Purged . | . . . . Corruption Blocked . | . . . . Overload Shots . | . . . . Overflow Damage 2 | . . . 2 Projectiles 2 | . . . 2 Explosions . | . . . . Melee . | . . . . Knockbacks . | . . . . Impact . | . . . . Kinetic . | . . . . Secondary . | . . . . Self-Inflicted Damage 236 | . . . 236 Shots 5 | . . . 5 Rammed . | . . . . Targets Rammed . | . . . . Kicked . | . . . . Crushed . | . . . . Highest Temperature 168 | 36 98 66 168 Average Temperature 45 | 18 38 39 57 Received Heat Transfer 381 | . 66 75 240 Siege Activations . | . . . . Robots Corrupted . | . . . . Combat Hostiles . | . . . . Parts Fried . | . . . . Impact Corruptions . | . . . . Robots Melted . | . . . . Combat Hostiles . | . . . . Parts Melted . | . . . . Heat Transferred 372 | 100 . 74 198 Parts Sabotaged . | . . . . Parts Stolen . | . . . . Parts Stripped . | . . . . Power Chain Reactions 1 | 1 . . . Alert | -11 -10 -10 -9 ------- Run | Yrd Mat Min Mat Peak Influence 546 | 25 136 55 546 Initial 16 | . 16 . . Average 79 | 3 43 43 180 Maximum Alert Level 2 | . . . 2 Low Security (%) 89 | 100 100 100 61 Level 1 6 | . . . 22 Level 2 4 | . . . 16 Level 3 . | . . . . Level 4 . | . . . . Level 5 . | . . . . High Security . | . . . . Max Security . | . . . . Squads Dispatched . | . . . . Investigation . | . . . . Extermination . | . . . . Reinforcement . | . . . . Assault . | . . . . Garrison . | . . . . Intercept . | . . . . Searches Triggered . | . . . . Construction Impeded . | . . . . Haulers Reinforced . | . . . . Active Scanning Responses . | . . . . Cargo Convoy Interrupts . | . . . . Stealth | -11 -10 -10 -9 --------- Run | Yrd Mat Min Mat Distress Signals 4 | . 1 1 2 Communications Jammed . | . . . . Distress Signals . | . . . . Times Spotted 39 | 1 12 4 22 Peak Tracking Total 7 | 1 5 2 7 Tactical Retreats . | . . . . Traps | -11 -10 -10 -9 ------- Run | Yrd Mat Min Mat Traps Triggered 1 | . . 1 . Indirectly . | . . . . Trap Hack Attempts . | . . . . Triggered . | . . . . Disarmed . | . . . . Reprogrammed . | . . . . Reused . | . . . . Traps Extracted . | . . . . Installed . | . . . . Triggered . | . . . . Machines | -11 -10 -10 -9 ---------- Run | Yrd Mat Min Mat Machines Disabled 7 | . . . 7 Max in Single Turn 3 | . . . 3 Machines Repaired . | . . . . Machines Dismantled . | . . . . Machines Sabotaged . | . . . . Overloaded Fab Kills . | . . . . Hacking | -11 -10 -10 -9 --------- Run | Yrd Mat Min Mat Machines Accessed 3 | . 1 1 1 Terminals 2 | . 1 . 1 Fabricators . | . . . . Repair Stations . | . . . . Recycling Units . | . . . . Scanalyzers . | . . . . Garrison Access . | . . . . Total Hacks 4 | . 1 1 2 Successful 4 | . 1 1 2 Failed . | . . . . Catastrophic . | . . . . Database Lockouts . | . . . . Manual . | . . . . Terminals 3 | . 1 . 2 Fabricators . | . . . . Repair Stations . | . . . . Recycling Units . | . . . . Scanalyzers . | . . . . Garrison Access . | . . . . Terminal Hacks 4 | . 1 1 2 Record 2 | . 1 . 1 Open Door 1 | . . 1 . Alert Level 1 | . . . 1 Fabricator Hacks . | . . . . Repair Station Hacks . | . . . . Recycling Unit Hacks . | . . . . Scanalyzer . | . . . . Garrison Access Hacks . | . . . . Unauthorized Hacks . | . . . . Terminals . | . . . . Fabricators . | . . . . Repair Stations . | . . . . Recycling Units . | . . . . Scanalyzers . | . . . . Garrison Access . | . . . . Data Cores Recovered 1 | . . . 1 Used . | . . . . Hacking Detections . | . . . . Full Trace Events . | . . . . Feedback Events . | . . . . Feedback Blocked . | . . . . Robot Schematics Acquired . | . . . . Robots Built . | . . . . Authchips . | . . . . Time . | . . . . Total Robot Build Rating . | . . . . Part Schematics Acquired . | . . . . Parts Built . | . . . . Authchips . | . . . . Time . | . . . . Total Part Build Rating . | . . . . Parts Repaired . | . . . . Time . | . . . . Parts Recycled . | . . . . Recycled Matter . | . . . . Retrieved Matter . | . . . . Retrieved Components . | . . . . Parts Scanalyzed . | . . . . Part Schematics Acquired . | . . . . Parts Damaged . | . . . . Bothacking | -11 -10 -10 -9 ------------ Run | Yrd Mat Min Mat Used RIF Installer . | . . . . Robots Hacked . | . . . . Non-combat . | . . . . Combat . | . . . . Robot Hacks Applied . | . . . . Relay Couplers Released . | . . . . Fabnet Peak Effective % . | . . . . Robots Rewired . | . . . . Allies Hacked . | . . . . Hacks Repelled . | . . . . Allies | -11 -10 -10 -9 -------- Run | Yrd Mat Min Mat Total Allies . | . . . . Largest Group . | . . . . Highest-Rated Group . | . . . . Highest-Rated Ally . | . . . . Total Orders . | . . . . Ally Attacks . | . . . . Total Damage . | . . . . Kills . | . . . . Allies Corrupted . | . . . . Allies Melted . | . . . . Intel | -11 -10 -10 -9 ------- Run | Yrd Mat Min Mat Robot Analysis Total . | . . . . Derelict Logs Recovered . | . . . . Drone Launches . | . . . . Drone Recoveries . | . . . . Exploration | -11 -10 -10 -9 ------------- Run | Yrd Mat Min Mat Turns Passed 1405 | 94 461 454 396 Spaces Moved 769 | 72 196 286 215 Core 35 | 21 . . 14 Treads 427 | . . 226 201 Legs 307 | 51 196 60 . Wheels . | . . . . Hover . | . . . . Flight . | . . . . Fastest Speed 50 | 50 120 120 50 Average Speed 153 | 99 199 141 146 Slowest Speed 260 | 120 260 152 152 Overloaded Moves . | . . . . Propulsion Burnouts . | . . . . Robots Hopped . | . . . . Cave-ins Triggered . | . . . . Exploration Rate (%) 28 | 7 30 51 26 Regions Visited 3 Branch Regions 1 Pre-discovered Areas . | . . . . Known Exits Taken . | . . . . Unknown Exits Taken 3 | 1 1 1 . Scrap Searched 1 | . . 1 . Spaces Dug . | . . . . Terrain Destroyed 146 | 3 . . 143 Melee . | . . . . Projectile . | . . . . AOE 146 | 3 . . 143 Terrain Rammed . | . . . . Walls Destroyed . | . . . . Machines Disabled . | . . . . Actions | -11 -10 -10 -9 --------- Run | Yrd Mat Min Mat Total 916 | 89 243 323 261 Wait 6 | . 6 . . Move 766 | 71 195 285 215 Hop . | . . . . Pick Up 37 | 7 11 11 8 Fast Attach . | . . . . Attach 23 | 7 4 4 8 Detach 6 | 1 3 1 1 Swap 6 | . 2 2 2 Drop 16 | . 8 6 2 Fire 56 | 3 14 14 25 Melee . | . . . . Ram . | . . . . Kick . | . . . . Crush . | . . . . Escape Stasis . | . . . . Rewire . | . . . . Trap . | . . . . Miscellaneous . | . . . . Route ------- -11/Scrapyard -10/Materials -10/Mines -9/Materials History --------- Turn | Location | Event 2 | -11/Scrapyard | Met Revision 17 68 | -11/Scrapyard | Discovered new exit (range 8) 95 | -11/Scrapyard | Entered Materials 305 | -10/Materials | Build established: Mutant 539 | -10/Materials | Discovered new exit (range 6) 556 | -10/Materials | Entered Mines 581 | -10/Mines | Met a Derelict bent on vengeance 646 | -10/Mines | Met a Derelict who couldn't figure out how to use a Trap Extractor 749 | -10/Mines | Assembled infested the area 862 | -10/Mines | Joined a pair of Derelicts in attacking an 0b10 outpost 993 | -10/Mines | Discovered new exit (range 9) 1010 | -10/Mines | Entered Materials 1010 | -9/Materials | Evolved 2 slots: Utility x2 1381 | -9/Materials | Core integrity fell below 50% 1398 | -9/Materials | Core integrity fell below 20% 1406 | -9/Materials | Destroyed by Y-45 Defender with Beam Rifle Last Messages --------------- Acquired Hvy. Assault Rifle. Lgt. Assault Rifle destroyed. Adv. Treads destroyed. S-10 Pest destroyed. R-06 Scavenger collects Flight Unit. K-01 Serf collects debris. M-13 Machinist repairs M-13 Machinist. Hvy. Assault Rifle destroyed. The unstable cave ceiling collapses. Flight Unit crushed. K-01 Serf collects debris. Acquired Lgt. Ion Engine. K-01 Serf collects debris. Acquired Plasma Cutter. K-01 Serf collects debris. The unstable cave ceiling collapses. K-01 Serf collects debris. Plasma Cutter destroyed. Lgt. Ion Engine destroyed. K-01 Serf collects debris. Map ----- +----------------------------------------------------+ | ?????????????????????????????????????????????????? | | ?????????????????????????????????????????????????? | | ?????????????????????????????????????????????????? | | ?????????????????????????????????????????????????? | | ??????????? ??????????####?????????????????????? | | ?????????# ????????? #?????????????????????? | | ?????????# ???????? #?????????????????????? | | ?????????#% T ???????? % #?????????????????????? | | ?????????# ??????? #?????????????????????? | | ???????### #####?? #???#?????????????????? | | ???????#"""""" ""#### #### #?????????????????? | | ??????##" # # ??????????????????? | | ??????# " # # """??? /?????????????? | | ??????##" k m + """" #?????????????? | | ??????# " * m # """" #?????????????? | | ??????# " =% #?????????????? | | ??????# " !! #?????????????? | | ???????#""" # !! #?????????????? | | ???????# " s # !! #?????????????? | | ???????#####" %Y# #?????????????? | | ???????????## #####??????????????? | | ????????????# " #####??????????????????? | | ????????????# " "" # #??????????????????????? | | ????????????# """ # #??????????????????????? | | ??????????? + # ########???????????????? | | ??????????### # @# #???????????????? | | ????????????########### # T #???????????????? | | ??????????????????????# + #???????????????? | | ??????????????????????# # #???????????????? | | ??????????????????????+ # #???????????????? | | ??????????????????????# # #???????????????? | | ??????????????????????# ########???????????????? | | ??????????????????????# #??#######?????????????? | | ????????????????#+????# #? ?????????????? | | ?????############ ##### # ??????????????? | | ???? # """????????????????? | | ???? + """?????????????????? | | ???? # """????????????????? | | ???? ^ ##### ## ??????????????? | | ??# """ """ ####" ###########?????????????? | | ??# """ """ # "u" #?????????????????????? | | ??# """ """ # " ##????????????????????? | | ??# " """ ####?????????????????? | | ??#^ #?????????????????? | | ??# """ """ # #?????????????????? | | ??# ^""" """ != ###?????????????????? | | ??# / """ """ " [ #??????????????????? | | ??# " = #??????????????????? | | ??# " !* #??????????????????? | | ??# ^ """ """ ### = * #??????????????????? | +----------------------------------------------------+ Best States ------------- Heat Dissipation 28 Energy Generation 12 Energy Capacity 265 Matter Stores 300 Matter Capacity 300 Sight Range 16 Robot Scan Range 15 Terrain Scan Range 16 Terrain Scan Density 10 Armor Coverage 150 Evasion (%) 55 Targeting Accuracy 5 Recoil Reduction 2 Item Schematics ----------------- None Robot Schematics ------------------ None Fabricated ------------ Nothing Alien Tech Used ----------------- None Achievements -------------- Crack Shot I Spy Challenges ------------ None Game ------ Seed ThermicAlertShotgun Manual? 0 Play Time 00:26:51 Cumulative 1.0 hours Start 2024.04.02 @ 06:59:13 End 2024.04.02 @ 07:26:01 Sessions 1 Manual Loads 0 Difficulty Rogue Special Mode None Game No. 2 Rogue 2 Adventurer 0 Explorer 0 Win Type - Total 0 Types 0/0/0/0/0/0/0/0/0 Lore% 0 Gallery% 3 Achievement% 3 Wizard Run 0 Options --------- Layout 0 ASCII 0 Keyboard 1 Movement Vi Keybinds 0 Fullscreen 2 Font 18/SmallcapsGlow Map View 76x50 Zoom Use 0% Tactical HUD 0 Map Filters NONE Filters NONE Steam 0 RUN: 6850ef90-afb9-4f88-be29-7231541c2e34